{"text_format":"1","workbook":"xlsx","n_sheets":4,"sheets":["Instructiuni","Parametri Identificare","Completare Oferta","Notificari Fizice"],"not_rendered":{"charts":0,"images":0,"macros":1,"external_links":0,"defined_names":0,"comments":2,"pivot_tables":0},"unopened":[],"bounds":{"document_bytes":16777216,"sheet_cells":100000,"rows_first":2000,"rows_last":500,"rows_between":2000,"halvings":0,"cell_chars":16384,"cell_head_chars":4096},"cells_cut":0,"cells_raw":0,"read":"whole","date_system":"1900"}

{"sheet":"Instructiuni","index":0,"n_rows":32,"n_cols":3,"rows_kept":32,"cut":false,"hidden":false,"merged":[[23,1,23,2],[24,1,24,2],[25,1,25,2],[26,1,26,2],[27,1,27,2],[30,1,30,2],[31,1,31,2],[22,1,22,2],[0,1,0,2],[1,1,1,2],[2,1,2,2],[3,1,3,2],[4,1,4,2],[16,1,16,2],[17,1,17,2],[18,1,18,2],[19,1,19,2],[20,1,20,2],[21,1,21,2],[28,1,28,2],[29,1,29,2]]}
["Versiunea\n5.0","Pasii necesari pentru completarea machetei:"]
[null,"Scop: Macheta ajuta la completarea fisierului de tip text (cu extensia .xml) folosit pentru incarcarea ofertei conform celui de-al doilea mod descris in \"Procedura de stabilire a formatului, continutului, modului de transmitere si de validare a ofertelor pe piata pentru ziua urmatoare\""]
[null,"Prin incarcarea fisierului de tip text (cu extensia .xml) in sistemul de tranzactionare se inlocuieste intreaga oferta de un anumit tip (vanzare, respectiv cumparare) existenta in sistemul de tranzactionare, indiferent daca aceasta cuprinde oferta orara si/sau oferte bloc. In consecinta, este necesar sa pastrati macheta completata pentru ofertarea initiala pentru a opera modificarile pe aceasta. Participantul are obligatia si responsabilitatea verificarii datelor introduse in sistemul de tranzactionare."]
[null,"MACHETA functioneaza cu versiunile Microsoft OFFICE mai noi decat OFFICE 2003."]
[null,"Foaia Parametri Identificare"]
[null,"Cod participant","Campul cod participant reprezinta codul alocat de Administratorul Sistemului de Tranzactionare fiecarui participant."]
[null,"Identificare mesaj","Campul identificare mesaj se completeaza cu numele ofertei XML care se creeaza. Acesta este un nume ales de participant care sa fie sugestiv in ce priveste numele ofertei, tipul ofertei si data livrarii."]
[null,"Versiune mesaj","Campul versiunea mesajului se va completa numai in foaia \"Parametrii Identificare\", acesta fiind transferat automat pentru fiecare interval din foaia \"Completare Oferta\".\nAceasta versiune se va completa in conformitate cu varianta de oferta care se creeaza. Astfel, prima oferta intocmita pentru o anumita zi de livrare va avea versiunea 1. Daca se modifica oferta pentru aceiasi zi de livrare, versiunea va fi 2 s.a.m.d."]
[null,"Tipul mesajului","Campul tipul mesajului reprezinta tipul ofertei, respectiv:\n   X01 - este codul alocat ofertelor de cumparare\n   X02 - este codul alocat ofertelor de vanzare"]
[null,"Identificare expeditor","Este identic cu cod participant din aceeasi foaie de lucru."]
[null,"MessageDateTime","Reprezentarea datei si orei de creare a fisierului de oferta tip .XML (se completeaza automat de catre program)."]
[null,"Ziua de livrare","Se alege ziua de livrare pentru care este valabila oferta cu ajutorul campurilor D3, E3 si F3."]
[null,"Rezolutie","Reprezinta un paramentru de sistem ce nu se modifica sub nici o forma!"]
[null,"Locație","Locația aleasa de Participant unde va fi generat fișierul xml. ATENTIE: Se va pastra forma: \"Litera partitie:\" + \"\\denumire folder\\\"."]
[null,"Ora exacta (CET)","Din celula G1 se selecteaza modul de reprezentare a timpului functie ora exacta in ore CET, respectiv zi de vara, zi de trecere de la vara la iarna (care include 25 intervale), zi de iarna, zi de trecere de la iarna la vara (care include 23 intervale orare). \nOferta se completeaza pentru intervale consecutive. Oferta completata pentru intervalele orare care nu sunt valabile (intervalul 25 in alta zi decat cea de trecere de la orarul de vara la orarul de iarna, intervalul 24 pentru ziua de trecere de la ora de iarna la ora de vara) nu sunt trecute in fisierul .xml la crearea acestuia."]
[null,"Limitarile participantului","In zona celulelor K2-K4 participantul poate stabili limite pentru cantitatea orara si pentru pret in care ofertele introduse (perechile din ofertele orare si perechile aferente ofertelor bloc) se pot incadra. Depasirea acestor limite genereaza o semnalizare pe fond rosu a valorii introduse in foaia Oferte, aceste limitari reprezentand doar o avertizare vizuala.\nATENTIE: daca valoarea ce depaseste limitarea nu este rectificata aceasta va fi acceptata de catre macheta prin apasarea butonului \"Creaza fisier .XML\" si implicit validata de catre platforma de tranzactionare la incarcarea ofertei.\nATENTIE: avertizarile la cantitatea orara a ofertelor simple nu se cumuleaza cu cantitatea orara a ofertelor bloc."]
[null,"Celulele colorate cu albastru indica faptul ca informatiile corespunzatoare acestor celule vor fi completate de catre Participant."]
[null,"Foaia Completare Oferta"]
[null,"In foaia \"Oferte\" se va completa (automat cu datele din foaia Indentificarea in piata, cu exceptia perechilor pret-cantitate) pentru fiecare interval de tranzactionare in parte:"]
[null,"Ofertele orare se completeaza in zona cuprinsa intre linia 8 si linia 39 dupa cum urmeaza:"]
[null,"   a) tipul ofertei"]
[null,"   b) perechile pret-cantitate cu respectarea ordinii crescatoare (la vanzare - se poate apasa butonul Ordoneaza Vanzare) sau descrescatoare (la cumparare - se poate apasa butonul Ordoneaza Cumparare) a pretului; in cazul in care nu se respecta aceasta prevedere, la crearea ofertei va apare un mesaj care avertizeaza ca oferta nu este corect intocmita."]
[null,"   c) in cazul in care pretul sau cantitatea depasesc limitele din foaia \"Identificarea in Piata\" casuta excel se va colora in rosu."]
[null,"Ofertele bloc se completeaza in zona care incepe cu linia 44 astfel:"]
[null,"   a) Identificatorul blocului este numele de definitie a ofertei bloc preluat identic din sistemul de tranzactionare."]
[null,"   b) Oferta \"parinte\" este oferta de a carei executare este conditionata oferta curenta. Acest parametru se completeaza numai pentru ofertele corelate."]
[null,"Daca o anumita oferta bloc este legata de o alta oferta bloc se trece numarul blocului de care este legata. Exemplu:\nDaca oferta bloc nr.3 (Nr.Bloc) este legata de oferta bloc nr.1 in celula \"Bloc parinte\" de pe linia aferenta Blocului nr. 3 se trece 1 (numarul blocului de care este legata oferta blocului 3).\nIn cazul in care nu este legata de o alta oferta, in campul respectiv nu se trece nimic."]
[null,"Pentru actualizarea tuturor informatiilor in excel se tasteaza F9. "]
[null,"Dupa completarea datelor pentru fiecare interval de tranzactionare si tastarea F9, utilizatorul se va intoarce in foaia \"Parametrii Identificare\" si va selecta butonul \"Creeaza fisier .XML\"."]
[null,"Macheta permite crearea fisierelor .xml corecte pentru fiecare perioada din an (orar vara, orar iarna, schimbare orar iarna-vara si schimbare orar vara-iarna). Pentru aceasta s-a introdus o caseta de selectie a tipului de program orar in foaia \"Parametrii Identificare\" in celula G1. Selectarea perioadei valabile se face prin accesarea listei derulante care se deschide la selectia acestei celule.\nPentru a pastra selectia tipului de ora se salveaza fisierul macheta dupa setarea dorita.\nATENTIE: Intervalele orare se vor completa de la stanga catre dreapta, consecutiv. Prin urmare la schimbare orar iarna-vara (23 intervale) NU se va sari peste intervalul 3."]
[null,"Foaia Notificari Fizice"]
[null,"In foaia \"Notificari Fizice\" participantul are posibilitatea sa vizualizeze cantitatile tranzactionate sub forma agregata prin apasarea butonului \"Notificari fizice\" si selectarea fisierului \"TP Physical Notification\" descarcat in prealabil din platforma de tranzactionare."]

{"sheet":"Parametri Identificare","index":1,"n_rows":33,"n_cols":17,"rows_kept":33,"cut":false,"hidden":false,"merged":[[0,3,0,5],[2,9,3,9],[6,9,7,9],[10,1,10,10]]}
["Cod participant","PARTICIPANT",null,"Ziua de Livrare",null,null,"Orar Vara"]
["Identificare mesaj","oferta_v_c_zz.ll.aaa",null,"Zi","Luna","An",null,null,null,"Limita Cantitate",99.9,null,null,1,2019]
["Versiune mesaj",1,null,5,4,2019,null,null,null,"Limita Pret",-9.99,"(Pret minim)",null,2,2020,null,"Orar Iarna"]
["Tip oferta (buy/sell)","X02",null,null,null,null,null,null,null,null,199.99,"(Pret maxim)",null,3,2021,null,"Schimbare orar Iarna - Vara"]
["Identificare expeditor",{"$f":"B1","v":"PARTICIPANT"},null,"2019-04-05",null,null,null,null,null,null,null,null,null,4,2022,null,"Orar Vara"]
["MessageDateTime","2019-08-30T10:35:41Z",null,null,null,null,null,null,null,null,null,null,null,5,2023,null,"Schimbare orar Vara - Iarna"]
["Ziua de tranzactionare","2019-04-04T22:00Z/2019-04-05T22:00Z",null,null,null,null,null,null,null,"Tipul Oferta","X01","(Cumparare/Buy)",null,6,2024]
["Rezolutie","PT1H",null,null,null,null,null,null,null,null,"X02","(Vanzare/Sell)",null,7,2025]
["Locatie","C:\\Temp\\",null,null,null,null,null,null,null,null,null,null,null,8,2026]
[null,null,null,null,null,null,null,null,null,null,null,null,null,9,2027]
[null,{"$f":"\"Prin apasarea butonului de deasupra veti genera o oferta de \"&IF(B4=\"X02\",\"VANZARE\",\"CUMPARARE\")&\" cu o cantitate totala de \"&SUM('Completare Oferta'!C40,'Completare Oferta'!E40,'Completare Oferta'!G40,'Completare Oferta'!I40,'Completare Oferta'!K40,'Completare Oferta'!M40,'Completare Oferta'!O40,'Completare Oferta'!Q40,'Completare Oferta'!S40,'Completare Oferta'!U40,'Completare Oferta'!W40,'Completare Oferta'!Y40,'Completare Oferta'!AA40,'Completare Oferta'!AC40,'Completare Oferta'!AE40,'Completare Oferta'!AG40,'Completare Oferta'!AI40,'Completare Oferta'!AK40,'Completare Oferta'!AM40,'Completare Oferta'!AO40,'Completare Oferta'!AQ40,'Completare Oferta'!AS40,'Completare Oferta'!AU40,'Completare Oferta'!AW40,'Completare Oferta'!AY40,'Completare Oferta'!D45:D64)&\" MWh/h\"","v":"Prin apasarea butonului de deasupra veti genera o oferta de VANZARE cu o cantitate totala de 0 MWh/h"},null,null,null,null,null,null,null,null,null,null,null,10,2028]
[null,null,null,null,null,null,null,null,null,null,null,null,"Andrei ERIMESCU 02.04.2019",11,2029]
[null,null,null,null,null,null,null,null,null,null,null,null,null,12,2030]
[null,null,null,null,null,null,null,null,null,null,null,null,null,13,2031]
[null,null,null,null,null,null,null,null,null,null,null,null,null,14,2032]
[null,null,null,null,null,null,null,null,null,null,null,null,null,15,2033]
[null,null,null,null,null,null,null,null,null,null,null,null,null,16,2034]
[null,null,null,null,null,null,null,null,null,null,null,null,null,17,2035]
[null,null,null,null,null,null,null,null,null,null,null,null,null,18,2036]
[null,null,null,null,null,null,null,null,null,null,null,null,null,19,2037]
[null,null,null,null,null,null,null,null,null,null,null,null,null,20,2038]
[null,null,null,null,null,null,null,null,null,null,null,null,null,21,2039]
[null,null,null,null,null,null,null,null,null,null,null,null,null,22,2040]
[null,null,null,null,null,null,null,null,null,null,null,null,null,23,2041]
[null,null,null,null,null,null,null,null,null,null,null,null,null,24,2042]
[null,null,null,null,null,null,null,null,null,null,null,null,null,25,2043]
[null,null,null,null,null,null,null,null,null,null,null,null,null,26,2044]
[null,null,null,null,null,null,null,null,null,null,null,null,null,27,2045]
[null,null,null,null,null,null,null,null,null,null,null,null,null,28,2046]
[null,null,null,null,null,null,null,null,null,null,null,null,null,29,2047]
[null,null,null,null,null,null,null,null,null,null,null,null,null,30,2048]
[null,null,null,null,null,null,null,null,null,null,null,null,null,31,2049]
[null,null,null,null,null,null,null,null,null,null,null,null,null,null,2050]

{"sheet":"Completare Oferta","index":2,"n_rows":64,"n_cols":51,"rows_kept":64,"cut":false,"hidden":false,"merged":[[44,1,44,2],[45,1,45,2],[46,1,46,2],[47,1,47,2],[43,1,43,2],[48,1,48,2],[0,47,0,48],[0,49,0,50],[0,35,0,36],[0,37,0,38],[0,39,0,40],[0,41,0,42],[0,43,0,44],[0,45,0,46],[0,23,0,24],[0,25,0,26],[0,27,0,28],[0,29,0,30],[0,31,0,32],[0,33,0,34],[0,11,0,12],[0,13,0,14],[0,15,0,16],[0,17,0,18],[0,19,0,20],[0,21,0,22],[0,9,0,10],[0,0,6,0],[0,1,0,2],[0,3,0,4],[0,5,0,6],[0,7,0,8],[49,1,49,2],[50,1,50,2],[51,1,51,2],[52,1,52,2],[53,1,53,2],[54,1,54,2],[55,1,55,2],[56,1,56,2],[57,1,57,2],[58,1,58,2],[59,1,59,2],[60,1,60,2],[61,1,61,2],[62,1,62,2],[63,1,63,2]]}
["Nr. Pereche cantitate pret",1,null,2,null,3,null,4,null,5,null,6,null,7,null,8,null,9,null,10,null,11,null,12,null,13,null,14,null,15,null,16,null,17,null,18,null,19,null,20,null,21,null,22,null,23,null,24,null,25]
[null,"Identificare mesaj",{"$f":"'Parametri Identificare'!B2","v":"oferta_v_c_zz.ll.aaa"},"Identificare mesaj",{"$f":"'Parametri Identificare'!B2","v":"oferta_v_c_zz.ll.aaa"},"Identificare mesaj",{"$f":"'Parametri Identificare'!B2","v":"oferta_v_c_zz.ll.aaa"},"Identificare mesaj",{"$f":"'Parametri Identificare'!B2","v":"oferta_v_c_zz.ll.aaa"},"Identificare mesaj",{"$f":"'Parametri Identificare'!B2","v":"oferta_v_c_zz.ll.aaa"},"Identificare mesaj",{"$f":"'Parametri Identificare'!B2","v":"oferta_v_c_zz.ll.aaa"},"Identificare mesaj",{"$f":"'Parametri Identificare'!B2","v":"oferta_v_c_zz.ll.aaa"},"Identificare mesaj",{"$f":"'Parametri Identificare'!B2","v":"oferta_v_c_zz.ll.aaa"},"Identificare mesaj",{"$f":"'Parametri Identificare'!B2","v":"oferta_v_c_zz.ll.aaa"},"Identificare mesaj",{"$f":"'Parametri Identificare'!B2","v":"oferta_v_c_zz.ll.aaa"},"Identificare mesaj",{"$f":"'Parametri Identificare'!B2","v":"oferta_v_c_zz.ll.aaa"},"Identificare mesaj",{"$f":"'Parametri Identificare'!B2","v":"oferta_v_c_zz.ll.aaa"},"Identificare mesaj",{"$f":"'Parametri Identificare'!B2","v":"oferta_v_c_zz.ll.aaa"},"Identificare mesaj",{"$f":"'Parametri Identificare'!B2","v":"oferta_v_c_zz.ll.aaa"},"Identificare mesaj",{"$f":"'Parametri Identificare'!B2","v":"oferta_v_c_zz.ll.aaa"},"Identificare mesaj",{"$f":"'Parametri Identificare'!B2","v":"oferta_v_c_zz.ll.aaa"},"Identificare mesaj",{"$f":"'Parametri Identificare'!B2","v":"oferta_v_c_zz.ll.aaa"},"Identificare mesaj",{"$f":"'Parametri Identificare'!B2","v":"oferta_v_c_zz.ll.aaa"},"Identificare mesaj",{"$f":"'Parametri Identificare'!B2","v":"oferta_v_c_zz.ll.aaa"},"Identificare mesaj",{"$f":"'Parametri Identificare'!B2","v":"oferta_v_c_zz.ll.aaa"},"Identificare mesaj",{"$f":"'Parametri Identificare'!B2","v":"oferta_v_c_zz.ll.aaa"},"Identificare mesaj",{"$f":"'Parametri Identificare'!B2","v":"oferta_v_c_zz.ll.aaa"},"Identificare mesaj",{"$f":"'Parametri Identificare'!B2","v":"oferta_v_c_zz.ll.aaa"},"Identificare mesaj",{"$f":"'Parametri Identificare'!B2","v":"oferta_v_c_zz.ll.aaa"},"Identificare mesaj",{"$f":"'Parametri Identificare'!B2","v":"oferta_v_c_zz.ll.aaa"}]
[null,"Versiune mesaj",{"$f":"'Parametri Identificare'!B3","v":1},"Versiune mesaj",{"$f":"'Parametri Identificare'!B3","v":1},"Versiune mesaj",{"$f":"'Parametri Identificare'!B3","v":1},"Versiune mesaj",{"$f":"'Parametri Identificare'!B3","v":1},"Versiune mesaj",{"$f":"'Parametri Identificare'!B3","v":1},"Versiune mesaj",{"$f":"'Parametri Identificare'!B3","v":1},"Versiune mesaj",{"$f":"'Parametri Identificare'!B3","v":1},"Versiune mesaj",{"$f":"'Parametri Identificare'!B3","v":1},"Versiune mesaj",{"$f":"'Parametri Identificare'!B3","v":1},"Versiune mesaj",{"$f":"'Parametri Identificare'!B3","v":1},"Versiune mesaj",{"$f":"'Parametri Identificare'!B3","v":1},"Versiune mesaj",{"$f":"'Parametri Identificare'!B3","v":1},"Versiune mesaj",{"$f":"'Parametri Identificare'!B3","v":1},"Versiune mesaj",{"$f":"'Parametri Identificare'!B3","v":1},"Versiune mesaj",{"$f":"'Parametri Identificare'!B3","v":1},"Versiune mesaj",{"$f":"'Parametri Identificare'!B3","v":1},"Versiune mesaj",{"$f":"'Parametri Identificare'!B3","v":1},"Versiune mesaj",{"$f":"'Parametri Identificare'!B3","v":1},"Versiune mesaj",{"$f":"'Parametri Identificare'!B3","v":1},"Versiune mesaj",{"$f":"'Parametri Identificare'!B3","v":1},"Versiune mesaj",{"$f":"'Parametri Identificare'!B3","v":1},"Versiune mesaj",{"$f":"'Parametri Identificare'!B3","v":1},"Versiune mesaj",{"$f":"'Parametri Identificare'!B3","v":1},"Versiune mesaj",{"$f":"'Parametri Identificare'!B3","v":1},"Versiune mesaj",{"$f":"'Parametri Identificare'!B3","v":1}]
[null,"Tip oferta (buy/sell)",{"$f":"IF('Parametri Identificare'!B4=\"X01\",\"BUY\",\"SELL\")","v":"SELL"},"Tip oferta (buy/sell)",{"$f":"IF('Parametri Identificare'!B4=\"X01\",\"BUY\",\"SELL\")","v":"SELL"},"Tip oferta (buy/sell)",{"$f":"IF('Parametri Identificare'!B4=\"X01\",\"BUY\",\"SELL\")","v":"SELL"},"Tip oferta (buy/sell)",{"$f":"IF('Parametri Identificare'!B4=\"X01\",\"BUY\",\"SELL\")","v":"SELL"},"Tip oferta (buy/sell)",{"$f":"IF('Parametri Identificare'!B4=\"X01\",\"BUY\",\"SELL\")","v":"SELL"},"Tip oferta (buy/sell)",{"$f":"IF('Parametri Identificare'!B4=\"X01\",\"BUY\",\"SELL\")","v":"SELL"},"Tip oferta (buy/sell)",{"$f":"IF('Parametri Identificare'!B4=\"X01\",\"BUY\",\"SELL\")","v":"SELL"},"Tip oferta (buy/sell)",{"$f":"IF('Parametri Identificare'!B4=\"X01\",\"BUY\",\"SELL\")","v":"SELL"},"Tip oferta (buy/sell)",{"$f":"IF('Parametri Identificare'!B4=\"X01\",\"BUY\",\"SELL\")","v":"SELL"},"Tip oferta (buy/sell)",{"$f":"IF('Parametri Identificare'!B4=\"X01\",\"BUY\",\"SELL\")","v":"SELL"},"Tip oferta (buy/sell)",{"$f":"IF('Parametri Identificare'!B4=\"X01\",\"BUY\",\"SELL\")","v":"SELL"},"Tip oferta (buy/sell)",{"$f":"IF('Parametri Identificare'!B4=\"X01\",\"BUY\",\"SELL\")","v":"SELL"},"Tip oferta (buy/sell)",{"$f":"IF('Parametri Identificare'!B4=\"X01\",\"BUY\",\"SELL\")","v":"SELL"},"Tip oferta (buy/sell)",{"$f":"IF('Parametri Identificare'!B4=\"X01\",\"BUY\",\"SELL\")","v":"SELL"},"Tip oferta (buy/sell)",{"$f":"IF('Parametri Identificare'!B4=\"X01\",\"BUY\",\"SELL\")","v":"SELL"},"Tip oferta (buy/sell)",{"$f":"IF('Parametri Identificare'!B4=\"X01\",\"BUY\",\"SELL\")","v":"SELL"},"Tip oferta (buy/sell)",{"$f":"IF('Parametri Identificare'!B4=\"X01\",\"BUY\",\"SELL\")","v":"SELL"},"Tip oferta (buy/sell)",{"$f":"IF('Parametri Identificare'!B4=\"X01\",\"BUY\",\"SELL\")","v":"SELL"},"Tip oferta (buy/sell)",{"$f":"IF('Parametri Identificare'!B4=\"X01\",\"BUY\",\"SELL\")","v":"SELL"},"Tip oferta (buy/sell)",{"$f":"IF('Parametri Identificare'!B4=\"X01\",\"BUY\",\"SELL\")","v":"SELL"},"Tip oferta (buy/sell)",{"$f":"IF('Parametri Identificare'!B4=\"X01\",\"BUY\",\"SELL\")","v":"SELL"},"Tip oferta (buy/sell)",{"$f":"IF('Parametri Identificare'!B4=\"X01\",\"BUY\",\"SELL\")","v":"SELL"},"Tip oferta (buy/sell)",{"$f":"IF('Parametri Identificare'!B4=\"X01\",\"BUY\",\"SELL\")","v":"SELL"},"Tip oferta (buy/sell)",{"$f":"IF('Parametri Identificare'!B4=\"X01\",\"BUY\",\"SELL\")","v":"SELL"},"Tip oferta (buy/sell)",{"$f":"IF('Parametri Identificare'!B4=\"X01\",\"BUY\",\"SELL\")","v":"SELL"}]
[null,"Zona tranzactionare","10YRO-TEL------P","Zona tranzactionare","10YRO-TEL------P","Zona tranzactionare","10YRO-TEL------P","Zona tranzactionare","10YRO-TEL------P","Zona tranzactionare","10YRO-TEL------P","Zona tranzactionare","10YRO-TEL------P","Zona tranzactionare","10YRO-TEL------P","Zona tranzactionare","10YRO-TEL------P","Zona tranzactionare","10YRO-TEL------P","Zona tranzactionare","10YRO-TEL------P","Zona tranzactionare","10YRO-TEL------P","Zona tranzactionare","10YRO-TEL------P","Zona tranzactionare","10YRO-TEL------P","Zona tranzactionare","10YRO-TEL------P","Zona tranzactionare","10YRO-TEL------P","Zona tranzactionare","10YRO-TEL------P","Zona tranzactionare","10YRO-TEL------P","Zona tranzactionare","10YRO-TEL------P","Zona tranzactionare","10YRO-TEL------P","Zona tranzactionare","10YRO-TEL------P","Zona tranzactionare","10YRO-TEL------P","Zona tranzactionare","10YRO-TEL------P","Zona tranzactionare","10YRO-TEL------P","Zona tranzactionare","10YRO-TEL------P","Zona tranzactionare","10YRO-TEL------P"]
[null,"Cod participant",{"$f":"'Parametri Identificare'!B1","v":"PARTICIPANT"},"Cod participant",{"$f":"'Parametri Identificare'!B1","v":"PARTICIPANT"},"Cod participant",{"$f":"'Parametri Identificare'!B1","v":"PARTICIPANT"},"Cod participant",{"$f":"'Parametri Identificare'!B1","v":"PARTICIPANT"},"Cod participant",{"$f":"'Parametri Identificare'!B1","v":"PARTICIPANT"},"Cod participant",{"$f":"'Parametri Identificare'!B1","v":"PARTICIPANT"},"Cod participant",{"$f":"'Parametri Identificare'!B1","v":"PARTICIPANT"},"Cod participant",{"$f":"'Parametri Identificare'!B1","v":"PARTICIPANT"},"Cod participant",{"$f":"'Parametri Identificare'!B1","v":"PARTICIPANT"},"Cod participant",{"$f":"'Parametri Identificare'!B1","v":"PARTICIPANT"},"Cod participant",{"$f":"'Parametri Identificare'!B1","v":"PARTICIPANT"},"Cod participant",{"$f":"'Parametri Identificare'!B1","v":"PARTICIPANT"},"Cod participant",{"$f":"'Parametri Identificare'!B1","v":"PARTICIPANT"},"Cod participant",{"$f":"'Parametri Identificare'!B1","v":"PARTICIPANT"},"Cod participant",{"$f":"'Parametri Identificare'!B1","v":"PARTICIPANT"},"Cod participant",{"$f":"'Parametri Identificare'!B1","v":"PARTICIPANT"},"Cod participant",{"$f":"'Parametri Identificare'!B1","v":"PARTICIPANT"},"Cod participant",{"$f":"'Parametri Identificare'!B1","v":"PARTICIPANT"},"Cod participant",{"$f":"'Parametri Identificare'!B1","v":"PARTICIPANT"},"Cod participant",{"$f":"'Parametri Identificare'!B1","v":"PARTICIPANT"},"Cod participant",{"$f":"'Parametri Identificare'!B1","v":"PARTICIPANT"},"Cod participant",{"$f":"'Parametri Identificare'!B1","v":"PARTICIPANT"},"Cod participant",{"$f":"'Parametri Identificare'!B1","v":"PARTICIPANT"},"Cod participant",{"$f":"'Parametri Identificare'!B1","v":"PARTICIPANT"},"Cod participant",{"$f":"'Parametri Identificare'!B1","v":"PARTICIPANT"}]
[null,"Cantitate","Pret","Cantitate","Pret","Cantitate","Pret","Cantitate","Pret","Cantitate","Pret","Cantitate","Pret","Cantitate","Pret","Cantitate","Pret","Cantitate","Pret","Cantitate","Pret","Cantitate","Pret","Cantitate","Pret","Cantitate","Pret","Cantitate","Pret","Cantitate","Pret","Cantitate","Pret","Cantitate","Pret","Cantitate","Pret","Cantitate","Pret","Cantitate","Pret","Cantitate","Pret","Cantitate","Pret","Cantitate","Pret","Cantitate","Pret","Cantitate","Pret"]
[1]
[2]
[3]
[4]
[5]
[6]
[7]
[8]
[9]
[10]
[11]
[12]
[13]
[14]
[15]
[16]
[17]
[18]
[19]
[20]
[21]
[22]
[23]
[24]
[25]
[26]
[27]
[28]
[29]
[30]
[31]
[32]
[null,"Cantitate Orara",{"$f":"SUM(B8:B39)","v":0},"Cantitate Orara",{"$f":"SUM(D8:D39)","v":0},"Cantitate Orara",{"$f":"SUM(F8:F39)","v":0},"Cantitate Orara",{"$f":"SUM(H8:H39)","v":0},"Cantitate Orara",{"$f":"SUM(J8:J39)","v":0},"Cantitate Orara",{"$f":"SUM(L8:L39)","v":0},"Cantitate Orara",{"$f":"SUM(N8:N39)","v":0},"Cantitate Orara",{"$f":"SUM(P8:P39)","v":0},"Cantitate Orara",{"$f":"SUM(R8:R39)","v":0},"Cantitate Orara",{"$f":"SUM(T8:T39)","v":0},"Cantitate Orara",{"$f":"SUM(V8:V39)","v":0},"Cantitate Orara",{"$f":"SUM(X8:X39)","v":0},"Cantitate Orara",{"$f":"SUM(Z8:Z39)","v":0},"Cantitate Orara",{"$f":"SUM(AB8:AB39)","v":0},"Cantitate Orara",{"$f":"SUM(AD8:AD39)","v":0},"Cantitate Orara",{"$f":"SUM(AF8:AF39)","v":0},"Cantitate Orara",{"$f":"SUM(AH8:AH39)","v":0},"Cantitate Orara",{"$f":"SUM(AJ8:AJ39)","v":0},"Cantitate Orara",{"$f":"SUM(AL8:AL39)","v":0},"Cantitate Orara",{"$f":"SUM(AN8:AN39)","v":0},"Cantitate Orara",{"$f":"SUM(AP8:AP39)","v":0},"Cantitate Orara",{"$f":"SUM(AR8:AR39)","v":0},"Cantitate Orara",{"$f":"SUM(AT8:AT39)","v":0},"Cantitate Orara",{"$f":"SUM(AV8:AV39)","v":0},"Cantitate Orara",{"$f":"SUM(AX8:AX39)","v":0}]
[]
[]
[]
["Nr. Bloc","Identificator Bloc",null,"Cantitate","Pret","Bloc \"parinte\""]
[1]
[2]
[3]
[4]
[5]
[6]
[7]
[8]
[9]
[10]
[11]
[12]
[13]
[14]
[15]
[16]
[17]
[18]
[19]
[20]

{"sheet":"Notificari Fizice","index":3,"n_rows":102,"n_cols":4,"rows_kept":102,"cut":false,"hidden":false,"merged":[[102,0,105,3],[0,0,1,0],[0,3,1,3],[0,1,0,2]]}
[null,"Putere medie tranzacționată pe PZU"]
[null,"Vanzare","Cumparare"]
["Interval 1",null,null,"MW"]
["Interval 2",null,null,"MW"]
["Interval 3",null,null,"MW"]
["Interval 4",null,null,"MW"]
["Interval 5",null,null,"MW"]
["Interval 6",null,null,"MW"]
["Interval 7",null,null,"MW"]
["Interval 8",null,null,"MW"]
["Interval 9",null,null,"MW"]
["Interval 10",null,null,"MW"]
["Interval 11",null,null,"MW"]
["Interval 12",null,null,"MW"]
["Interval 13",null,null,"MW"]
["Interval 14",null,null,"MW"]
["Interval 15",null,null,"MW"]
["Interval 16",null,null,"MW"]
["Interval 17",null,null,"MW"]
["Interval 18",null,null,"MW"]
["Interval 19",null,null,"MW"]
["Interval 20",null,null,"MW"]
["Interval 21",null,null,"MW"]
["Interval 22",null,null,"MW"]
["Interval 23",null,null,"MW"]
["Interval 24",null,null,"MW"]
["Interval 25",null,null,"MW"]
["Interval 26",null,null,"MW"]
["Interval 27",null,null,"MW"]
["Interval 28",null,null,"MW"]
["Interval 29",null,null,"MW"]
["Interval 30",null,null,"MW"]
["Interval 31",null,null,"MW"]
["Interval 32",null,null,"MW"]
["Interval 33",null,null,"MW"]
["Interval 34",null,null,"MW"]
["Interval 35",null,null,"MW"]
["Interval 36",null,null,"MW"]
["Interval 37",null,null,"MW"]
["Interval 38",null,null,"MW"]
["Interval 39",null,null,"MW"]
["Interval 40",null,null,"MW"]
["Interval 41",null,null,"MW"]
["Interval 42",null,null,"MW"]
["Interval 43",null,null,"MW"]
["Interval 44",null,null,"MW"]
["Interval 45",null,null,"MW"]
["Interval 46",null,null,"MW"]
["Interval 47",null,null,"MW"]
["Interval 48",null,null,"MW"]
["Interval 49",null,null,"MW"]
["Interval 50",null,null,"MW"]
["Interval 51",null,null,"MW"]
["Interval 52",null,null,"MW"]
["Interval 53",null,null,"MW"]
["Interval 54",null,null,"MW"]
["Interval 55",null,null,"MW"]
["Interval 56",null,null,"MW"]
["Interval 57",null,null,"MW"]
["Interval 58",null,null,"MW"]
["Interval 59",null,null,"MW"]
["Interval 60",null,null,"MW"]
["Interval 61",null,null,"MW"]
["Interval 62",null,null,"MW"]
["Interval 63",null,null,"MW"]
["Interval 64",null,null,"MW"]
["Interval 65",null,null,"MW"]
["Interval 66",null,null,"MW"]
["Interval 67",null,null,"MW"]
["Interval 68",null,null,"MW"]
["Interval 69",null,null,"MW"]
["Interval 70",null,null,"MW"]
["Interval 71",null,null,"MW"]
["Interval 72",null,null,"MW"]
["Interval 73",null,null,"MW"]
["Interval 74",null,null,"MW"]
["Interval 75",null,null,"MW"]
["Interval 76",null,null,"MW"]
["Interval 77",null,null,"MW"]
["Interval 78",null,null,"MW"]
["Interval 79",null,null,"MW"]
["Interval 80",null,null,"MW"]
["Interval 81",null,null,"MW"]
["Interval 82",null,null,"MW"]
["Interval 83",null,null,"MW"]
["Interval 84",null,null,"MW"]
["Interval 85",null,null,"MW"]
["Interval 86",null,null,"MW"]
["Interval 87",null,null,"MW"]
["Interval 88",null,null,"MW"]
["Interval 89",null,null,"MW"]
["Interval 90",null,null,"MW"]
["Interval 91",null,null,"MW"]
["Interval 92",null,null,"MW"]
["Interval 93",null,null,"MW"]
["Interval 94",null,null,"MW"]
["Interval 95",null,null,"MW"]
["Interval 96",null,null,"MW"]
["Interval 97",null,null,"MW"]
["Interval 98",null,null,"MW"]
["Interval 99",null,null,"MW"]
["Interval 100",null,null,"MW"]